bitfinex-derivatives/quotes_SOLF0:USTF0_20251223
["timestamp","ask_amount","ask_price","bid_price","bid_amount"]
[1766479290965,3.43581239,124.48,124.44,7.29856321]
[1766479297271,3.43581239,124.48,124.44,0.06126321]
[1766479302666,3.32,124.47,124.44,0.06126321]
[1766479303670,10.5557,124.47,124.44,0.00126321]
[1766479303875,10.5557,124.47,124.4,94.84]
[1766479303876,3.32,124.46,124.4,104.85590307]
[1766479304264,3.32,124.46,124.4,94.84]
[1766479304874,0.05350503,124.44,124.42,0.05714881]
[1766479305177,3.32,124.46,124.42,0.05714881]
[1766479306080,0.05909032,124.45,124.42,0.05714881]
[1766479311194,3.37909032,124.45,124.42,0.05714881]
[1766479313200,3.37909032,124.45,124.39,7.2403]
[1766479314300,3.37909032,124.45,124.41,0.05290413]
[1766479320901,10.61629032,124.45,124.41,0.05290413]
[1766479321096,3.32,124.44,124.41,0.05290413]
[1766479327499,3.32,124.44,124.41,0.00290413]
[1766479327807,0.05909032,124.45,124.41,0.00290413]
[1766479329113,0.05909032,124.45,124.42,7.2386]
[1766479329911,0.05909032,124.45,124.41,0.00290413]
[1766479333928,3.27,124.44,124.41,0.00290413]
[1766479335523,3.32909032,124.45,124.41,0.00290413]
[1766479336911,0.05909032,124.45,124.41,7.24190413]
[1766479340323,0.05909032,124.45,124.42,7.2386]
[1766479343925,0.05909032,124.45,124.43,7.2379]
[1766479344116,9.032e-05,124.46,124.43,7.2379]
[1766479345125,0.05526647,124.46,124.43,7.2379]
[1766479349330,0.05526647,124.46,124.41,10.25160413]
[1766479352234,1.80223748,124.46,124.41,3.01290413]
[1766479356932,0.05526647,124.46,124.41,3.01290413]
[1766479365453,5.11697101,124.45,124.41,0.00290413]
[1766479367951,3.37,124.45,124.41,0.00290413]
[1766479368152,5.11697101,124.45,124.41,0.00290413]
[1766479374060,3.37,124.45,124.41,0.00290413]
[1766479375763,0.05517615,124.46,124.41,10.25200413]
[1766479376154,0.05517615,124.46,124.41,3.01290413]
[1766479376353,3.42517615,124.46,124.41,3.01290413]
[1766479377063,3.42517615,124.46,124.42,7.2385]
[1766479379866,0.05517615,124.46,124.42,10.2485]
[1766479380256,0.05517615,124.46,124.43,7.2378]
[1766479385273,0.05517615,124.46,124.43,10.2478]
[1766479389380,0.05517615,124.46,124.43,3.01]
[1766479437314,1.80184155,124.46,124.41,3.01290413]
[1766479448823,1.80184155,124.46,124.41,10.25190413]
[1766479472952,1.80184155,124.46,124.41,3.01290413]
[1766479482361,9.03814155,124.46,124.41,3.01290413]
[1766479495872,12.27814155,124.46,124.41,3.01290413]
[1766479496062,10.53147615,124.46,124.41,3.01290413]
[1766479499567,3.24,124.45,124.41,0.00290413]
[1766479502074,3.29517615,124.46,124.41,0.00290413]
[1766479505574,10.53167615,124.46,124.41,0.00290413]
[1766479505774,3.24,124.45,124.41,0.00290413]
[1766479506784,10.4769,124.45,124.41,0.00290413]
[1766479511287,3.26,124.43,124.41,0.00290413]
[1766479511580,3.26,124.43,124.35,10.01590307]
[1766479511768,3.26,124.43,124.36,3.01]
[1766479511769,3.26,124.41,124.36,3.01]
[1766479512380,0.05128933,124.4,124.37,0.05770599]
[1766479512682,7.29118933,124.4,124.37,0.05770599]
[1766479513189,10.55118933,124.4,124.37,0.05770599]
[1766479516588,3.26,124.37,124.32,3.01]
[1766479517577,0.05346602,124.36,124.33,0.06024423]
[1766479522385,3.31346602,124.36,124.33,0.06024423]
[1766479523587,0.05346602,124.36,124.33,0.06024423]
[1766479523787,0.05346602,124.36,124.33,3.13024423]
[1766479524481,3.26,124.39,124.33,3.13024423]
[1766479525592,0.05680933,124.37,124.33,3.13024423]
[1766479528681,94.82,124.4,124.34,2.96]
[1766479529183,3.26,124.41,124.35,2.96]
[1766479529579,0.05994619,124.39,124.37,0.05715413]
[1766479539298,0.05994619,124.39,124.35,2.96]
[1766479540099,0.05994619,124.39,124.36,0.061556]
[1766479543402,3.27994619,124.39,124.35,2.96]
[1766479543599,3.22,124.38,124.33,2.96]
[1766479544507,3.22,124.38,124.34,0.05581016]
[1766479556113,3.22,124.36,124.3,10.2053]
[1766479556521,3.22,124.36,124.31,3.02]
[1766479556903,0.0524161,124.35,124.31,3.02]
[1766479557115,0.0524161,124.35,124.32,0.05348899]
[1766479557415,0.0524161,124.35,124.32,3.07348899]
[1766479558217,0.0524161,124.35,124.32,10.31788899]
[1766479561920,0.0524161,124.35,124.32,7.29788899]
[1766479564226,0.0524161,124.35,124.32,0.05348899]
[1766479564526,0.0524161,124.35,124.29,3.02]
[1766479564527,3.22,124.34,124.29,3.02]
[1766479564711,3.22,124.34,124.27,210.8031]
[1766479564912,3.22,124.34,124.28,3.07]
[1766479565427,0.05296421,124.32,124.3,0.05548988]
[1766479579345,3.39296421,124.32,124.28,7.2466]
[1766479579644,0.05296421,124.32,124.28,10.3666]
[1766479580443,0.05296421,124.32,124.29,0.06009773]
[1766479580843,3.39296421,124.32,124.29,0.06009773]
[1766479581641,0.05296421,124.32,124.29,3.18009773]
[1766479581948,0.00296421,124.32,124.29,3.18009773]
[1766479582249,0.00296421,124.32,124.29,10.42619773]
[1766479582448,3.34296421,124.32,124.29,0.06009773]
[1766479582948,0.00296421,124.32,124.29,0.06009773]
[1766479590255,0.00296421,124.32,124.29,9.773e-05]
[1766479590856,3.34,124.31,124.29,9.773e-05]
[1766479598360,3.34,124.31,124.24,3.13]
[1766479598655,3.18,124.29,124.24,3.13]
[1766479598958,3.18,124.29,124.23,2.03665324]
[1766479599163,3.18,124.27,124.22,3.13]
[1766479599453,0.06160124,124.26,124.23,0.05910073]
[1766479608665,3.24160124,124.26,124.2,3.13]
[1766479608868,3.18,124.25,124.19,95.04]
[1766479609668,0.06163222,124.23,124.21,0.05689658]
[1766479609869,3.24163222,124.23,124.19,95.04]
[1766479610873,3.24163222,124.23,124.2,0.06046093]
[1766479618978,3.24163222,124.23,124.16,3.19]
[1766479619775,3.24163222,124.23,124.18,0.05168386]
[1766479620670,3.18,124.22,124.18,0.05168386]
[1766479622579,3.18,124.22,124.18,0.00168386]
[1766479623476,3.18,124.22,124.14,10.4545]
[1766479623477,3.18,124.21,124.14,10.4545]
[1766479624075,3.18,124.21,124.14,7.2545]
[1766479624283,3.24156129,124.19,124.16,0.05188718]
[1766479625079,0.06156129,124.19,124.16,3.25188718]
[1766479626083,0.06156129,124.19,124.16,0.05188718]
[1766479633491,3.21,124.24,124.18,3.27]
[1766479634594,0.06144253,124.22,124.2,0.05542205]
[1766479647001,3.21,124.24,124.2,0.05542205]
[1766479648001,0.05432247,124.23,124.2,0.05542205]
[1766479650789,3.26432247,124.23,124.2,0.05542205]
[1766479651502,0.05432247,124.23,124.2,0.05542205]
[1766479652408,0.05432247,124.23,124.2,7.30682205]
[1766479654406,3.37,124.26,124.21,3.17]
[1766479655508,3.37,124.26,124.2,9.99098689]
[1766479655702,3.42803859,124.25,124.22,0.05938513]
[1766479657608,0.05803859,124.25,124.22,0.05938513]
[1766479658700,0.05803859,124.25,124.22,7.30958513]
[1766479661209,3.18,124.29,124.23,3.31]
[1766479661407,3.18,124.29,124.22,3.31]
[1766479662407,3.23140018,124.27,124.24,0.05820186]
[1766479667419,0.05140018,124.27,124.24,0.05820186]
[1766479669419,0.05140018,124.27,124.24,7.30720186]
[1766479669614,0.05140018,124.27,124.24,10.61720186]
[1766479677730,3.18,124.29,124.24,10.61720186]
[1766479677930,3.18,124.29,124.25,1.75101428]
[1766479678830,0.06179426,124.28,124.25,1.75101428]
[1766479682540,0.06179426,124.28,124.24,10.61720186]
[1766479682541,3.24179426,124.28,124.24,3.36820186]
[1766479682846,3.24179426,124.28,124.24,0.05820186]
[1766479683840,3.24179426,124.28,124.19,98.39]
[1766479684146,3.18,124.25,124.19,5.06101428]
[1766479684846,0.05833124,124.23,124.21,0.05094227]
[1766479688645,3.5,124.27,124.21,5.32195655]
[1766479688946,3.5,124.27,124.18,95.08]
[1766479688947,3.5,124.29,124.23,5.27101428]
[1766479689743,3.55723557,124.27,124.21,5.27101428]
[1766479690350,3.55723557,124.27,124.22,3.52]
[1766479690752,3.55723557,124.27,124.23,0.05437191]
[1766479699257,10.80463557,124.27,124.23,0.00437191]
[1766479700157,3.5,124.26,124.2,9.00211428]
[1766479700359,3.5,124.25,124.19,5.27101428]
[1766479700758,3.5,124.25,124.2,3.52]
[1766479701355,0.05459848,124.24,124.21,0.0551288]
[1766479706463,0.05459848,124.24,124.21,7.3059288]
[1766479709370,0.05459848,124.24,124.21,0.0551288]
[1766479709973,3.55459848,124.24,124.18,3.52]
[1766479710866,3.5,124.23,124.18,3.52]
[1766479711067,3.5,124.23,124.19,0.05851488]
[1766479712471,3.5,124.22,124.16,98.6]
[1766479713060,3.5,124.21,124.16,98.6]
[1766479713261,3.5,124.21,124.14,3.52]
[1766479713466,0.05381665,124.19,124.16,0.06082909]
[1766479716476,3.31381665,124.19,124.16,0.00082909]
[1766479716880,5.06483093,124.19,124.12,105.7356]
[1766479717377,3.31381665,124.19,124.13,3.38]
[1766479717874,3.31381665,124.19,124.15,0.061072]
[1766479719078,3.49,124.18,124.11,3.49]
[1766479719274,3.49,124.17,124.11,3.49]
[1766479720172,0.05608948,124.15,124.13,0.05955152]
[1766479737378,3.54608948,124.15,124.13,0.05955152]
[1766479741388,10.80038948,124.15,124.09,7.2577]
[1766479741588,3.54608948,124.15,124.09,3.49]
[1766479742381,3.54608948,124.15,124.11,0.05256868]
[1766479742585,7.2551,124.14,124.11,0.05256868]
[1766479743091,10.80038948,124.15,124.11,0.05256868]
[1766479752293,3.54608948,124.15,124.11,0.05256868]
[1766479757406,10.80048948,124.15,124.11,0.05256868]
[1766479757605,3.23,124.14,124.11,0.05256868]
[1766479758207,3.23,124.13,124.08,3.33]
[1766479759202,0.05677745,124.12,124.09,0.02053533]
[1766479759508,3.28677745,124.12,124.09,0.02053533]
[1766479759703,3.28677745,124.12,124.06,3.33]
[1766479759905,3.23,124.11,124.06,3.33]
[1766479763611,3.23,124.11,124.04,3.33]
[1766479763612,3.23,124.1,124.04,3.33]
[1766479763913,0.05155185,124.08,124.04,3.33]
[1766479764712,0.00155185,124.08,124.04,3.33]
[1766479765613,0.00155185,124.08,124.06,3.33]
[1766479765806,3.23,124.11,124.06,3.33]
[1766479766816,0.06019686,124.1,124.07,0.05145694]
[1766479767009,0.06019686,124.1,124.07,3.38145694]
[1766479767221,0.00019686,124.1,124.07,3.38145694]
[1766479770012,0.00019686,124.1,124.07,0.05145694]
[1766479770310,3.23019686,124.1,124.07,0.05145694]
[1766479772422,3.23019686,124.1,124.07,0.00145694]
[1766479784827,3.42,124.09,124.03,10.7912]
[1766479785027,3.42,124.09,124.04,3.24]
[1766479785631,3.42,124.11,124.05,10.5]
[1766479785927,0.05713897,124.09,124.07,0.05986773]
[1766479791533,3.47713897,124.09,124.04,10.5004]
[1766479794139,0.05713897,124.09,124.05,3.24]
[1766479795539,0.05713897,124.09,124.06,7.2594]
[1766479797639,0.05713897,124.09,124.07,7.2589]
[1766479800239,0.05713897,124.09,124.06,3.24]
[1766479812449,95.06,124.12,124.07,3.51]
[1766479812640,3.51,124.13,124.07,3.51]
[1766479813447,0.05069757,124.11,124.09,0.05129733]
[1766479823058,0.00069757,124.11,124.09,3.56129733]
[1766479824257,0.00069757,124.11,124.09,0.05129733]
[1766479826558,0.00069757,124.11,124.09,3.56129733]
[1766479826955,5.26643979,124.15,124.09,3.56129733]
[1766479828162,0.05266555,124.13,124.09,3.56129733]
[1766479828552,0.05266555,124.13,124.09,10.81899733]
[1766479830562,0.05266555,124.13,124.1,3.51]
[1766479837973,0.00266555,124.13,124.11,3.27]
[1766479839575,0.00266555,124.13,124.11,10.5266]
[1766479840372,0.00266555,124.13,124.12,3.27]
[1766479867806,0.00266555,124.13,124.1,10.7271]
[1766479868708,0.00266555,124.13,124.11,3.47]
[1766479872708,0.00266555,124.13,122.84,130.3003765]
[1766479872709,112.9233,124.07,123.98,4.60269587]
[1766479872896,2.74259164,124.03,123.98,4.60269587]
[1766479873202,115.66339164,124.07,123.98,99.78269587]
[1766479873203,2.74259164,124.07,123.98,99.78269587]
[1766479873403,2.74259164,124.09,123.98,212.77949587]
[1766479873604,2.74259164,124.09,124.0,7.2629]
[1766479873605,10.00069164,124.09,124.0,7.2629]
[1766479873804,10.00069164,124.09,124.02,0.06155298]
[1766479874010,10.00069164,124.09,124.03,95.18]
[1766479874211,7.2581,124.09,124.03,95.18]
[1766479874507,9.99959164,124.11,124.03,95.18]
[1766479874704,9.99959164,124.11,124.04,3.47]
[1766479874899,0.05815363,124.09,124.06,0.05360232]
[1766479877401,0.05815363,124.09,124.07,57.0056]
[1766479877605,0.05815363,124.09,124.06,0.05360232]
[1766479878716,2.74259164,124.07,124.02,3.47]
[1766479879008,2.74259164,124.07,124.02,98.67]
[1766479879805,0.05178257,124.06,124.03,0.05514065]
[1766479880511,0.05178257,124.06,124.03,95.25514065]
[1766479882816,0.05178257,124.06,124.03,98.72514065]
[1766479883217,0.05178257,124.06,124.04,61.9602]
[1766479883418,7.2592,124.07,124.04,12.4781]
[1766479883611,7.2592,124.07,124.02,95.22]
[1766479883817,2.31,124.08,124.02,95.22]
[1766479884210,0.05291061,124.06,124.04,0.05589223]
[1766479884410,0.00291061,124.06,124.04,0.05589223]
[1766479884612,2.31,124.1,124.04,0.05589223]
[1766479884817,7.2568,124.11,124.04,0.05589223]
[1766479885218,7.2568,124.11,124.05,3.47]
[1766479885617,0.05895441,124.09,124.07,0.05878786]
[1766479889625,9.67695441,124.09,124.03,98.69]
[1766479889827,9.618,124.09,124.03,3.47]
[1766479890622,0.05928634,124.07,124.05,0.05001498]
[1766479912549,2.36928634,124.07,124.05,1.498e-05]
[1766479912755,2.36928634,124.07,124.02,10.5919]
[1766479912943,2.36928634,124.07,124.03,3.33]
[1766479918255,2.36928634,124.07,124.01,3.33]
[1766479919160,9.62838634,124.07,124.01,3.33]
[1766479919968,11.38654052,124.07,124.01,3.33]
[1766479920348,2.26,124.05,124.01,3.33]
[1766479920553,2.26,124.05,123.99,3.33]
[1766479920554,0.06047131,124.04,123.99,3.33]
[1766479920858,0.06047131,124.04,124.01,3.33]
[1766479921064,0.00047131,124.04,124.01,3.33]
[1766479921656,1.75815418,124.08,124.02,3.33]
[1766479921862,6.09156035,124.08,124.02,3.33]
[1766479922267,8.41156035,124.08,124.03,3.33]
[1766479922565,0.05103126,124.07,124.05,3.33]
[1766479922761,0.00103126,124.07,124.05,3.33]
[1766479925271,0.00103126,124.07,124.04,0.06047131]
[1766479932166,0.00103126,124.07,124.04,3.48047131]
[1766479946978,9.63023126,124.07,124.04,0.06047131]
[1766479947171,2.37103126,124.07,124.04,0.06047131]
[1766479947376,0.00103126,124.07,124.04,0.06047131]
[1766479948984,0.00103126,124.07,124.04,3.48047131]
[1766479959605,2.37,124.14,124.04,116.42277131]
[1766479959799,6.08271181,124.13,124.06,3.41]
[1766479960002,2.37,124.14,124.06,3.41]
[1766479960203,1.75815418,124.13,124.06,3.41]
[1766479960601,1.75815418,124.13,124.08,0.05558536]
[1766479960904,0.0581734,124.11,124.08,3.46558536]
[1766479968806,9.6848734,124.11,124.08,0.05558536]
[1766479969011,1.81632758,124.11,124.08,0.05558536]
[1766479976116,1.75815418,124.09,124.04,3.41]
[1766479977209,0.05813133,124.08,124.05,0.05591586]
[1766479978120,1.75815418,124.07,124.01,3.41]
[1766479979108,0.05344645,124.05,124.01,3.41]
[1766479979614,0.05344645,124.05,124.01,10.6724]
[1766479979915,0.00344645,124.05,124.02,3.41]
[1766479980812,97.84704929,124.09,124.02,10.72180135]
[1766479981019,95.1,124.09,124.03,3.41]
[1766479981812,95.1,124.09,124.05,0.05148872]
[1766479982017,95.1,124.09,124.05,3.46148872]
[1766479982517,97.46,124.12,124.05,3.46148872]
[1766479983219,0.05744415,124.1,124.05,3.46148872]
[1766479983419,0.05744415,124.1,124.06,3.41]
[1766479987215,95.1,124.12,124.07,3.46]
[1766479988314,0.05789773,124.11,124.08,0.05646975]
[1766479991118,0.05789773,124.11,124.08,3.51646975]
[1766479991523,2.42,124.15,124.09,10.7177]
[1766479992529,0.05231577,124.13,124.11,0.06085653]
[1766479995719,95.1,124.16,124.11,0.06085653]
[1766479996413,97.52,124.16,124.11,0.06085653]
[1766479996811,0.05869775,124.15,124.11,0.06085653]
[1766480005736,2.80574704,124.15,124.11,0.06085653]
[1766480013643,5.22574704,124.15,124.11,0.06085653]
[1766480016041,5.22574704,124.15,124.11,3.32085653]
[1766480018241,2.80574704,124.15,124.11,3.32085653]
[1766480018747,2.42,124.14,124.09,3.44]
[1766480019842,0.05521965,124.13,124.1,3.49955458]
[1766480053772,1.75589547,124.15,124.1,3.49955458]
[1766480054772,0.05169307,124.14,124.1,3.49955458]
[1766480059574,0.05169307,124.14,124.1,10.75675458]
[1766480059774,0.05169307,124.14,124.11,3.31]
[1766480061074,1.75589547,124.12,124.1,0.05955458]
[1766480061277,1.75589547,124.12,124.08,3.31]
[1766480061575,1.75589547,124.14,124.08,3.31]
[1766480062280,1.75589547,124.14,124.1,3.36250904]
[1766480064482,0.05646056,124.13,124.1,3.36250904]
[1766480064670,1.75589547,124.14,124.1,3.36250904]
[1766480065683,0.06146307,124.13,124.1,3.36250904]
[1766480069289,1.75589547,124.12,124.1,3.36250904]
[1766480069685,1.81735854,124.13,124.1,3.36250904]
[1766480076489,1.75589547,124.11,124.06,3.34]
[1766480077094,1.75589547,124.13,124.08,3.34]
[1766480077490,0.05670828,124.12,124.09,3.39828347]
[1766480085701,1.75589547,124.13,124.09,3.39828347]
[1766480086702,0.06180742,124.12,124.09,3.39828347]
[1766480092101,96.85589547,124.16,124.11,3.34]
[1766480093092,0.05281653,124.15,124.12,3.39254585]
[1766480101307,0.05281653,124.15,124.12,10.64854585]
[1766480103402,1.75589547,124.14,124.12,0.05254585]
[1766480103706,1.75589547,124.14,124.1,10.5967]
[1766480103907,2.79669165,124.15,124.1,10.5967]
[1766480104509,2.79669165,124.15,124.11,0.05194596]
[1766480105909,6.08669165,124.15,124.1,10.5967]
[1766480107107,6.08669165,124.15,124.11,0.05107539]
[1766480107309,2.79669165,124.15,124.11,10.65757539]
[1766480107808,0.05281653,124.15,124.11,10.65757539]
[1766480109314,0.05281653,124.15,124.11,3.40107539]
[1766480109513,2.79669165,124.15,124.11,3.40107539]
[1766480112126,0.00281653,124.15,124.11,3.40107539]
[1766480112324,3.29,124.18,124.11,3.40107539]
[1766480113322,0.05121619,124.16,124.11,3.40107539]
[1766480113630,0.05121619,124.16,124.13,7.2553]
[1766480113930,0.05121619,124.16,124.13,8.8853]
[1766480115325,0.05121619,124.16,124.13,1.63]
[1766480126429,0.00121619,124.16,124.13,1.63]
[1766480127443,0.00121619,124.16,124.13,8.8854]
[1766480128242,0.00121619,124.16,124.14,1.58]
[1766480128430,0.00121619,124.16,124.14,1.63365765]
[1766480130947,0.00121619,124.16,124.14,8.88835765]
[1766480131145,10.5408,124.22,124.15,1.58]
[1766480131435,6.03387512,124.21,124.15,1.58]
[1766480132043,0.06141772,124.19,124.17,0.06031859]
[1766480143343,0.00141772,124.19,124.17,0.06031859]
[1766480149059,0.00141772,124.19,124.14,7.2544]
[1766480149966,0.00141772,124.19,124.15,0.05574934]
[1766480156366,3.25,124.18,124.15,0.05574934]
[1766480157369,3.25,124.18,124.1,208.0244]
[1766480157672,3.25,124.18,124.13,7.2555]
[1766480158364,0.05167847,124.17,124.14,0.05998651]
[1766480163979,1.80685862,124.17,124.14,0.05998651]
[1766480167282,4.99685862,124.17,124.14,0.05998651]
[1766480167577,1.75518015,124.15,124.11,7.2562]
[1766480167784,4.94518015,124.15,124.07,112.9108]
[1766480168283,3.19,124.15,124.1,7.2571]
[1766480168686,0.05875264,124.14,124.11,7.30889566]
[1766480179577,0.05875264,124.14,124.11,0.05229566]
[1766480221816,3.50875264,124.14,124.11,0.05229566]
[1766480222117,3.50875264,124.14,124.11,0.00229566]
[1766480277669,10.6856,124.13,124.11,0.00229566]
[1766480278659,3.43,124.12,124.11,0.00229566]
[1766480278864,3.43,124.12,124.04,7.2604]
[1766480278865,3.43,124.11,124.04,7.2604]
[1766480279461,3.43,124.1,124.03,2.90434088]
[1766480279767,0.05802432,124.08,124.05,0.05453388]
[1766480287858,3.41802432,124.08,124.05,0.05453388]
[1766480289871,5.17526663,124.08,124.05,0.05453388]
[1766480292281,12.43366663,124.08,124.05,0.05453388]
[1766480293081,3.36,124.07,124.05,0.05453388]
[1766480293383,3.36,124.07,124.05,0.00453388]
[1766480294679,10.619,124.07,123.98,117.60299587]
[1766480295385,10.619,124.07,123.98,179.60299587]
[1766480295585,10.619,124.07,124.0,7.263]
[1766480295785,0.05519721,124.04,124.01,0.05113997]
[1766480296083,3.36,124.07,124.01,7.31343997]
[1766480296277,10.6181,124.09,124.01,0.05113997]
[1766480296478,10.6181,124.09,123.99,114.74324231]
[1766480296678,3.36,124.08,123.99,114.74324231]
[1766480297186,0.05704735,124.05,124.02,0.05930844]
[1766480297688,0.05704735,124.05,124.02,7.32100844]
[1766480298781,3.36,124.08,124.02,7.32100844]
[1766480298983,3.36,124.1,124.02,0.05930844]
[1766480299185,3.36,124.1,124.01,114.72724231]
[1766480299781,0.05226576,124.07,124.04,0.05589809]
[1766480299973,0.05226576,124.07,124.04,7.31659809]
[1766480300380,3.36,124.12,124.04,0.05589809]
[1766480300575,3.36,124.12,124.03,114.70974231]
[1766480300980,3.36,124.12,124.06,7.2595]
[1766480301379,0.05287631,124.1,124.08,0.05137816]
[1766480302588,0.00287631,124.1,124.08,0.05137816]
[1766480303577,0.00287631,124.1,124.08,7.30967816]
[1766480330806,3.27,124.15,124.09,7.2575]
[1766480331913,0.05361065,124.13,124.11,0.05450179]
[1766480339512,3.32361065,124.13,124.11,0.00450179]
[1766480356240,0.05361065,124.13,124.11,0.00450179]
[1766480366045,0.05361065,124.13,124.11,7.26090179]
[1766480374252,0.00361065,124.13,124.11,7.26090179]
[1766480390965,0.00361065,124.13,124.12,7.2561]
[1766480391165,3.47,124.18,124.11,0.00450179]
[1766480392162,0.05298514,124.16,124.11,0.00450179]
[1766480392563,0.05298514,124.16,124.13,7.2554]
[1766480395957,0.05298514,124.16,124.15,7.2543]
[1766480400573,0.05298514,124.16,124.14,0.05191892]
[1766480401359,0.05298514,124.16,124.14,7.30681892]
[1766480403268,3.52298514,124.16,124.07,112.9181]
[1766480403474,3.47,124.16,124.07,112.9181]
[1766480404072,3.47,124.16,124.1,7.2571]
[1766480404374,0.05685632,124.14,124.12,0.06181914]
[1766480404767,3.52685632,124.14,124.12,0.06181914]
[1766480405972,3.52685632,124.14,124.1,7.2571]
[1766480406980,3.52685632,124.14,124.11,0.05804766]
[1766480413680,3.52685632,124.14,124.08,7.258]
[1766480413988,3.47,124.14,124.08,7.258]
[1766480414687,0.05868635,124.12,124.1,0.05316993]
[1766480416090,0.05868635,124.12,124.1,7.31036993]
[1766480416791,3.29,124.16,124.11,7.2565]
[1766480416985,3.29,124.18,124.1,112.8907]
[1766480417184,3.29,124.18,124.11,112.8801]
[1766480417884,0.05968322,124.16,124.13,7.31117978]
[1766480422591,0.05968322,124.16,124.13,0.05587978]
[1766480423896,3.29,124.15,124.11,7.2562]
[1766480425195,3.29,124.15,124.12,0.05510456]
[1766480430901,3.29,124.15,124.1,7.257]
[1766480431905,3.29,124.15,124.11,0.05552337]
[1766480436106,3.29,124.15,124.11,7.31202337]
[1766480437710,0.05968322,124.16,124.11,0.05552337]
[1766480437905,0.05968322,124.16,124.11,112.93322337]
[1766480438112,0.05968322,124.16,124.12,112.8717]
[1766480438405,0.05968322,124.16,124.13,7.2549]
[1766480440312,0.05968322,124.16,124.14,7.2547]
[1766480440514,0.05968322,124.16,124.14,7.30868297]
[1766480446512,3.26,124.18,124.14,7.30868297]
[1766480446715,3.26,124.2,124.15,7.2542]
[1766480447105,3.26,124.2,124.13,112.8615]
[1766480447413,0.05319331,124.18,124.15,0.0575509]
[1766480448707,0.05319331,124.18,124.15,7.3114509]
[1766480449212,3.26,124.22,124.15,0.0575509]
[1766480449404,3.26,124.22,124.14,112.8513]
[1766480450114,0.06123931,124.19,124.17,0.05143951]
[1766480454623,1.78765503,124.23,124.17,0.05143951]
[1766480454624,3.26,124.23,124.17,0.05143951]
[1766480455315,3.26,124.23,124.17,1.80721066]
[1766480455518,0.05066665,124.21,124.18,7.2524]
[1766480460722,0.00066665,124.21,124.17,0.05143951]
[1766480460925,0.00066665,124.21,124.2,1.75577115]
[1766480461114,3.26,124.26,124.2,1.75577115]
[1766480461318,3.26,124.26,124.19,7.2519]
[1766480462131,3.31702821,124.24,124.21,0.05786188]
[1766480463637,0.05702821,124.24,124.21,0.05786188]
[1766480464633,0.05702821,124.24,124.21,7.30846188]
[1766480465433,0.05702821,124.24,124.21,9.06423303]
[1766480465632,0.05702821,124.24,124.21,7.30846188]
[1766480465833,0.05702821,124.24,124.23,1.75577115]
[1766480466033,3.26,124.26,124.23,1.75577115]
[1766480467132,3.31755724,124.26,124.23,1.75577115]
[1766480467839,7.2458,124.3,124.23,1.75577115]
[1766480469044,0.06143191,124.28,124.25,0.00340201]
[1766480469245,0.06143191,124.28,124.21,8.4006]
[1766480469439,0.06143191,124.28,124.25,1.75577115]
[1766480469643,0.06143191,124.28,124.21,8.4006]
[1766480469841,3.52143191,124.28,124.21,8.4006]
[1766480470344,3.52143191,124.28,124.23,0.05993837]
[1766480476951,3.52143191,124.28,124.23,7.30953837]
[1766480485260,3.52143191,124.28,124.24,3.23]
[1766480485762,3.52143191,124.28,124.23,7.30953837]
[1766480486661,3.52143191,124.28,124.23,10.53953837]
[1766480486858,0.06143191,124.28,124.24,10.479]
[1766480487164,0.06143191,124.28,124.25,3.23]
[1766480487365,0.06143191,124.28,124.25,10.4784]
[1766480489155,0.00143191,124.28,124.26,10.4778]
[1766480489866,0.00143191,124.28,124.27,3.23]
[1766480490562,3.46,124.32,124.27,10.4772]
[1766480491565,0.05381549,124.31,124.27,10.4772]
[1766480494068,0.05381549,124.31,124.28,3.41]
[1766480494264,3.44,124.34,124.29,3.41]
[1766480495365,0.05311471,124.33,124.3,0.05280304]
[1766480504579,0.05311471,124.33,124.3,3.54280304]
[1766480506680,0.05311471,124.33,124.31,3.49]
[1766480507580,0.05311471,124.33,124.3,7.29830304]
[1766480507779,0.05311471,124.33,124.3,10.78830304]
[1766480508370,0.00311471,124.33,124.31,3.49]
[1766480510376,0.00311471,124.33,124.3,0.05280304]
[1766480510572,3.42311471,124.33,124.3,0.05280304]
[1766480511779,3.42,124.32,124.24,3.49]
[1766480512072,3.42,124.31,124.23,3.49]